bitfinex-derivatives/quotes_ETHF0:USTF0_20241129
["timestamp","ask_amount","ask_price","bid_price","bid_amount"]
[1732851870161,0.2785,3590.1,3590.0,0.16]
[1732851870368,0.2785,3590.0,3589.9,3.2078]
[1732851870561,0.2785,3590.0,3589.9,47.0478]
[1732851871269,0.2785,3590.0,3589.9,6.2478]
[1732851871762,4.29472465,3590.1,3589.9,6.2478]
[1732851872269,0.2785,3590.0,3589.9,6.2478]
[1732851872466,0.2785,3590.0,3589.9,3.2078]
[1732851874871,0.2785,3590.0,3589.7,3.2078]
[1732851875166,0.2785,3590.0,3589.7,7.33633]
[1732851875669,4.29472465,3590.3,3589.8,0.27852]
[1732851875874,0.2785,3590.1,3589.8,4.1773]
[1732851876065,0.2785,3590.1,3589.9,0.435]
[1732851876370,0.2785,3590.1,3589.9,4.595]
[1732851876562,3.27017063,3590.3,3589.9,4.595]
[1732851876758,6.75644063,3590.5,3590.1,0.27849]
[1732851877565,6.47797063,3590.5,3590.2,0.4411]
[1732851877872,0.27848,3590.4,3590.2,0.4411]
[1732851878170,0.27848,3590.4,3590.3,0.435]
[1732851878573,6.75644063,3590.5,3590.3,0.435]
[1732851878771,3.27017063,3590.7,3590.4,1.30302402]
[1732851878967,0.27845,3590.8,3590.4,1.30302402]
[1732851879168,0.27845,3590.8,3590.4,4.22847]
[1732851879364,0.27845,3590.7,3590.4,4.22847]
[1732851882074,0.4478,3590.8,3590.4,4.22847]
[1732851882075,0.72624,3590.8,3590.4,3.95]
[1732851882266,0.72624,3590.8,3590.4,4.22847]
[1732851882463,0.27845,3590.7,3590.4,4.22847]
[1732851883971,1.47235402,3590.8,3590.4,3.95]
[1732851884178,1.30302402,3590.5,3590.4,3.95]
[1732851884474,1.02455402,3590.5,3590.4,3.95]
[1732851885470,3.27017063,3590.7,3590.4,4.22847]
[1732851885677,0.4478,3590.8,3590.4,4.22847]
[1732851885678,4.74252465,3590.8,3590.4,4.22847]
[1732851886174,0.27846,3590.7,3590.4,3.95]
[1732851886367,0.27846,3590.6,3590.4,3.95]
[1732851887477,1.30302402,3590.5,3590.4,3.95]
[1732851887666,1.02455402,3590.5,3590.4,3.95]
[1732851888375,7.07952465,3590.5,3589.9,7.58247226]
[1732851888570,0.2785,3590.0,3589.9,3.19]
[1732851889784,1.02455402,3590.1,3589.9,3.19]
[1732851890175,1.30305402,3590.1,3589.9,3.19]
[1732851890474,0.27848,3590.4,3590.0,2.7856]
[1732851890781,0.27848,3590.4,3590.2,3.2078]
[1732851891077,0.27848,3590.4,3590.3,0.4206]
[1732851891277,0.27848,3590.4,3590.3,4.7776]
[1732851891669,3.54864063,3590.5,3590.3,4.7776]
[1732851892276,3.27017063,3590.5,3590.3,5.1841]
[1732851892479,4.98898465,3590.6,3590.3,5.1841]
[1732851892983,0.27847,3590.5,3590.3,5.1841]
[1732851893273,4.98898465,3590.6,3590.3,5.1841]
[1732851893475,4.71052465,3590.6,3590.3,5.1841]
[1732851893675,3.54864063,3590.5,3590.3,5.1841]
[1732851894273,3.27017063,3590.6,3590.4,0.27847]
[1732851894473,3.27017063,3590.6,3590.4,4.18847]
[1732851897285,3.54863063,3590.6,3590.4,4.18847]
[1732851897477,3.27017063,3590.6,3590.4,4.18847]
[1732851898373,3.54863063,3590.6,3590.4,4.18847]
[1732851898576,4.29472465,3590.7,3590.5,0.27847]
[1732851898773,4.29472465,3590.7,3590.5,4.18847]
[1732851898981,3.27017063,3590.7,3590.6,0.27846]
[1732851899278,3.96959063,3591.1,3590.9,0.27843]
[1732851899486,3.96959063,3591.1,3591.0,0.4181]
[1732851900880,3.96959063,3591.1,3590.9,40.8]
[1732851900881,0.27843,3591.0,3590.9,40.8]
[1732851901281,3.54325484,3591.0,3590.9,40.8]
[1732851901675,3.26482484,3591.0,3590.5,7.58646592]
[1732851901881,1.02455402,3590.8,3590.5,7.4354]
[1732851902079,1.30300402,3590.8,3590.5,7.4354]
[1732851902384,0.4256,3590.7,3590.5,4.2276]
[1732851903276,0.27846,3590.6,3590.5,4.2276]
[1732851903485,0.69376,3590.6,3590.5,4.2276]
[1732851903680,1.13536,3590.6,3590.5,4.2276]
[1732851904588,0.4153,3590.6,3590.5,4.2276]
[1732851905885,0.4256,3590.7,3590.5,4.2276]
[1732851906086,0.70405,3590.7,3590.5,4.2276]
[1732851906592,0.70406,3590.7,3590.5,4.2276]
[1732851907288,0.70405,3590.7,3590.5,4.2276]
[1732851907484,0.4256,3590.7,3590.5,4.2276]
[1732851907693,0.27846,3590.6,3590.5,4.2276]
[1732851908084,0.27845,3590.8,3590.5,4.50606]
[1732851908383,0.27844,3590.9,3590.6,0.27845]
[1732851908793,1.2791,3591.0,3590.7,0.27844]
[1732851909089,0.27844,3590.9,3590.5,4.82626592]
[1732851909281,1.2791,3591.0,3590.7,0.27845]
[1732851909282,1.55753,3591.0,3590.7,0.27845]
[1732851913686,1.55753,3591.0,3590.6,3.2078]
[1732851913990,1.55753,3591.0,3590.7,0.27845]
[1732851914289,0.27844,3590.9,3590.7,0.27845]
[1732851914689,0.27845,3590.7,3590.6,3.2078]
[1732851914887,0.27845,3590.7,3590.6,4.16]
[1732851916382,0.27849,3590.2,3590.0,7.58646592]
[1732851916584,0.4297,3590.1,3590.0,11.79296592]
[1732851916889,0.4297,3590.1,3590.0,48.2143]
[1732851917583,0.4297,3590.1,3590.0,52.59296592]
[1732851918293,0.4297,3590.1,3590.0,11.79296592]
[1732851919486,0.7082,3590.1,3590.0,11.79296592]
[1732851919885,0.4297,3590.1,3590.0,11.79296592]
[1732851921285,0.4297,3590.1,3590.0,12.07146592]
[1732851921592,3.2600696,3590.7,3590.0,22.3282932]
[1732851921787,1.02455402,3590.6,3590.4,3.2078]
[1732851922090,1.02455402,3590.6,3590.1,4.37909926]
[1732851922091,3.2600696,3590.5,3590.1,4.37909926]
[1732851922297,1.02455402,3590.3,3590.1,8.66758926]
[1732851923387,1.02455402,3590.3,3590.2,0.27849]
[1732851923594,1.02455402,3590.3,3590.2,4.24849]
[1732851924094,0.71538,3590.4,3590.2,4.24849]
[1732851924291,0.71538,3590.4,3590.3,0.4235]
[1732851925391,0.4369,3590.4,3590.3,0.70198]
[1732851925792,0.71537,3590.4,3590.3,0.4235]
[1732851926099,0.71537,3590.4,3590.3,4.5835]
[1732851927187,0.4369,3590.4,3590.3,4.5835]
[1732851928197,0.4369,3590.4,3590.3,4.86198]
[1732851928394,0.71537,3590.4,3590.3,4.5835]
[1732851929597,3.2600696,3590.6,3590.3,4.5835]
[1732851929894,3.9777096,3590.8,3590.6,0.27846]
[1732851930093,0.71764,3590.8,3590.7,0.4291]
[1732851932088,0.4392,3590.8,3590.7,0.4291]
[1732851932703,4.79942751,3590.8,3590.7,0.4291]
[1732851933204,5.07786751,3590.8,3590.7,0.4291]
[1732851933899,4.79942751,3590.8,3590.7,0.4291]
[1732851934300,5.07786751,3590.8,3590.7,0.4291]
[1732851934692,0.4392,3590.8,3590.4,0.4108]
[1732851934892,1.02455402,3590.6,3590.4,3.98]
[1732851935097,0.27847,3590.5,3590.4,3.98]
[1732851935298,0.69987,3590.5,3590.4,3.98]
[1732851938711,0.4214,3590.5,3590.4,3.98]
[1732851939208,0.69987,3590.5,3590.4,3.98]
[1732851939614,3.96786249,3590.5,3590.4,3.98]
[1732851940006,0.69987,3590.5,3590.4,3.98]
[1732851941305,0.27848,3590.3,3590.1,7.58689926]
[1732851941511,3.54665355,3590.2,3590.1,3.2078]
[1732851941709,3.96335355,3590.2,3590.1,3.2078]
[1732851941911,3.96335355,3590.2,3589.7,6.5686489]
[1732851941912,3.2023,3590.2,3589.8,4.37909926]
[1732851942109,1.30306402,3589.9,3589.8,6.55909926]
[1732851942409,1.30306402,3589.9,3589.8,2.18]
[1732851944209,1.70916402,3589.9,3589.8,2.18]
[1732851946505,0.27856,3589.3,3589.2,4.37909926]
[1732851946711,0.27856,3589.3,3589.2,0.03]
[1732851946712,1.02455402,3589.3,3589.2,0.03]
[1732851946916,1.02455402,3589.3,3589.2,40.83]
[1732851947210,1.86235402,3589.3,3589.2,40.8]
[1732851949111,2.14091402,3589.3,3589.2,40.8]
[1732851950609,4.92731402,3589.3,3589.2,40.8]
[1732851950812,4.64875402,3589.3,3589.0,0.4305]
[1732851951021,1.02455402,3589.1,3589.0,0.4305]
[1732851951310,1.02455402,3589.1,3589.0,41.2305]
[1732851954620,1.30312402,3589.1,3589.0,41.2305]
[1732851957134,1.02455402,3589.1,3589.0,41.2305]
[1732851958725,1.30312402,3589.1,3589.0,41.2305]
[1732851960432,1.02455402,3589.1,3589.0,41.2305]
[1732851960628,1.02455402,3589.1,3589.0,41.50908]
[1732851960823,1.02455402,3589.1,3589.0,41.2305]
[1732851961221,1.30312402,3589.1,3589.0,41.2305]
[1732851961624,1.02455402,3589.1,3589.0,41.2305]
[1732851962428,1.02455402,3589.1,3589.0,41.50908]
[1732851963425,1.02455402,3589.1,3589.0,41.2305]
[1732851963632,0.27857,3589.2,3589.0,41.2305]
[1732851963827,3.48651689,3589.7,3589.1,0.27857]
[1732851963828,0.27855,3589.5,3589.1,0.27857]
[1732851964028,0.27852,3589.8,3589.6,0.27853]
[1732851964228,1.30307402,3589.8,3589.7,0.8514]
[1732851964429,1.30307402,3589.8,3589.7,41.6514]
[1732851965123,1.30307402,3589.8,3589.7,0.8514]
[1732851965328,1.02455402,3589.8,3589.7,0.8514]
[1732851965631,1.30307402,3589.8,3589.7,0.8514]
[1732851966030,0.27854,3589.6,3589.4,40.8]
[1732851966226,1.30309402,3589.5,3589.4,45.1895]
[1732851966431,1.30309402,3589.5,3589.4,4.3895]
[1732851966432,1.74009402,3589.5,3589.4,4.3895]
[1732851966730,1.46155402,3589.5,3589.4,4.3895]
[1732851967028,3.2078,3590.0,3589.4,8.19965402]
[1732851967228,3.2078,3590.0,3589.9,0.27851]
[1732851967428,3.2078,3590.0,3589.4,1.45405402]
[1732851967628,1.02455402,3590.2,3589.9,0.27851]
[1732851967823,1.02455402,3590.2,3590.0,0.8502]
[1732851968530,1.02455402,3590.2,3590.0,1.1287]
[1732851971135,1.02455402,3590.2,3590.0,0.8502]
[1732851971333,1.02455402,3590.2,3590.0,1.1287]
[1732851971936,1.02455402,3590.2,3590.0,0.8502]
[1732851972141,1.02455402,3590.2,3590.1,0.6952]
[1732851972543,1.02455402,3590.2,3590.1,0.4167]
[1732851972943,1.02455402,3590.2,3590.1,0.6952]
[1732851973136,1.02455402,3590.2,3590.1,0.4167]
[1732851974042,3.54488339,3590.6,3590.1,4.5567]
[1732851974339,1.30301402,3590.6,3590.2,0.27849]
[1732851974534,1.02455402,3590.6,3590.2,4.45849]
[1732851974736,0.27847,3590.5,3590.2,4.45849]
[1732851975541,1.30301402,3590.6,3590.2,4.45849]
[1732851976646,1.30301402,3590.6,3590.3,0.27848]
[1732851976841,1.30301402,3590.6,3590.3,4.37]
[1732851977238,1.30301402,3590.6,3590.3,4.64848]
[1732851977442,1.02455402,3590.6,3590.4,0.27847]
[1732851977640,1.02455402,3590.6,3590.4,4.42847]
[1732851977941,1.02455402,3590.6,3590.5,0.8725]
[1732851978445,1.30301402,3590.6,3590.5,0.4334]
[1732851978647,0.27847,3590.5,3590.1,0.69519]
[1732851978944,1.02455402,3590.3,3590.2,0.71189]
[1732851979242,1.02455402,3590.3,3590.2,5.11189]
[1732851980147,1.30303402,3590.3,3590.2,4.8334]
[1732851981540,1.02455402,3590.3,3590.2,5.11189]
[1732851981735,1.02455402,3590.3,3590.2,4.8334]
[1732851982341,1.02455402,3590.3,3590.2,5.11189]
[1732851983150,1.02455402,3590.6,3590.4,0.27847]
[1732851983347,1.02455402,3590.6,3590.5,0.4456]
[1732851983840,1.30301402,3590.6,3590.5,0.4456]
[1732851984545,4.34604,3590.8,3590.5,0.72407]
[1732851984740,1.02455402,3590.7,3590.5,4.6956]
[1732851984940,4.56942741,3590.7,3590.6,0.4459]
[1732851985739,0.27847,3590.4,3590.3,0.4367]
[1732851985940,1.02455402,3590.4,3590.3,45.2687]
[1732851987143,1.02455402,3590.4,3590.3,45.54718]
[1732851989653,1.02455402,3590.4,3590.3,48.75498]
[1732851990564,1.30302402,3590.4,3590.3,6.8278]
[1732851990851,2.15592402,3590.4,3590.3,6.8278]
[1732851993057,2.15592402,3590.4,3590.3,3.2078]
[1732851993357,0.27851,3590.0,3589.9,3.2078]
[1732851993555,0.27851,3590.0,3589.9,6.8978]
[1732851993745,0.27851,3590.0,3589.9,47.6978]
[1732851994056,0.27851,3590.0,3589.9,6.8978]
[1732851996448,1.02455402,3590.1,3589.9,6.8978]
[1732851996652,0.2785,3590.0,3589.9,6.8978]
[1732851997359,0.4046,3590.3,3589.9,6.8978]
[1732851997758,0.4046,3590.3,3590.1,0.2785]
[1732851998061,0.4217,3590.4,3590.1,3.94]
[1732851998255,0.4217,3590.4,3590.3,0.27848]
[1732851998652,0.4217,3590.4,3590.3,0.4143]
[1732851998858,0.70017,3590.4,3590.3,0.4143]
[1732851999156,1.02455402,3590.5,3590.4,0.27847]
[1732851999357,1.02455402,3590.5,3590.4,4.18]
[1732852000459,1.30302402,3590.5,3590.4,4.18]
[1732852001760,1.02455402,3590.5,3590.4,4.18]
[1732852001965,4.56944741,3590.5,3590.4,4.18]
[1732852002160,4.29097741,3590.5,3590.3,3.6221]
[1732852002363,1.02455402,3590.5,3590.3,7.6121]
[1732852002864,4.29097741,3590.5,3590.3,7.6121]
[1732852003065,1.02455402,3590.5,3590.3,7.89058]
[1732852003569,4.29097741,3590.5,3590.3,7.89058]
[1732852004355,4.29097741,3590.5,3590.3,7.6121]
[1732852004561,4.29097741,3590.5,3590.4,0.27847]
[1732852004761,4.29097741,3590.5,3590.4,3.59]
[1732852005464,1.30302402,3590.5,3590.4,3.59]
[1732852007566,4.57468867,3590.5,3590.4,3.59]
[1732852008265,4.29621867,3590.5,3590.4,3.59]
[1732852008968,3.72066465,3590.7,3590.4,3.59]
[1732852010664,3.72066465,3590.7,3590.4,3.86847]
[1732852011562,3.27166465,3590.6,3590.4,8.24756926]
[1732852011763,3.27166465,3590.6,3590.5,40.8]
[1732852012063,3.27166465,3590.6,3590.5,44.62]
[1732852012264,3.27166465,3590.6,3590.5,44.89847]
[1732852016768,3.27166465,3590.6,3590.5,49.27756926]
[1732852019270,5.83178106,3590.8,3590.6,0.27846]
[1732852019271,3.27166465,3590.7,3590.6,0.27846]
[1732852019570,3.27166465,3590.7,3590.6,2.33846]
[1732852019761,3.27166465,3590.7,3590.6,2.77636]
[1732852022267,4.35842704,3590.7,3590.6,2.77636]
[1732852024274,3.27573481,3590.8,3590.7,0.27845]
[1732852024469,6.49924988,3591.2,3590.8,0.27844]
[1732852024470,3.27573481,3590.9,3590.8,0.27844]
[1732852024771,3.27573481,3590.9,3590.8,4.78684]
[1732852024966,3.27573481,3591.0,3590.8,4.5084]
[1732852025168,3.27573481,3591.0,3590.9,0.27843]
[1732852025372,3.27573481,3591.0,3590.9,4.36843]
[1732852025570,3.27573481,3591.1,3591.0,0.27843]
[1732852025768,3.27573481,3591.2,3591.1,0.27842]
[1732852026078,3.27573481,3591.3,3591.1,7.6878]
[1732852026275,3.27573481,3591.3,3591.2,0.27841]
[1732852026470,3.27573481,3591.3,3591.2,4.20841]
[1732852027273,3.27573481,3591.4,3591.2,3.93]
[1732852027470,3.27573481,3591.4,3591.3,0.2784]
[1732852027677,3.27573481,3591.4,3591.3,4.6084]
[1732852029375,4.30028883,3591.5,3591.4,0.2784]
[1732852029576,4.30028883,3591.5,3591.4,4.5984]
[1732852030170,1.02455402,3591.5,3591.4,4.5984]
[1732852034080,0.4385,3591.6,3591.5,0.27839]
[1732852034275,1.46305402,3591.6,3591.5,0.27839]
[1732852034474,0.2784,3591.3,3591.1,3.48622]
[1732852034779,4.30028883,3591.2,3590.4,3.2078]
[1732852034975,1.02455402,3590.5,3590.4,3.2078]
[1732852035177,1.02455402,3590.5,3590.4,3.48627]
[1732852043375,3.80935402,3590.5,3590.4,3.2078]
[1732852043581,1.02455402,3590.5,3590.4,3.48627]
[1732852044082,3.71573481,3590.6,3590.4,3.2078]
[1732852044385,1.46455402,3590.6,3590.5,0.27847]
[1732852045284,4.74028883,3590.6,3590.5,0.27847]
[1732852045992,1.46455402,3590.6,3590.5,0.27847]
[1732852046787,4.74028883,3590.6,3590.5,0.27847]
[1732852046985,1.46455402,3590.6,3590.5,0.27847]
[1732852047193,4.74028883,3590.6,3590.5,0.27847]
[1732852047592,4.74028883,3590.6,3590.4,3.48627]
[1732852047995,4.74028883,3590.6,3590.5,0.27847]
[1732852049192,1.46455402,3590.6,3590.5,0.27847]
[1732852050203,4.74028883,3590.6,3590.5,0.27847]
[1732852052405,1.46455402,3590.6,3590.5,0.27847]
[1732852058018,3.27573481,3590.8,3590.7,0.27845]
[1732852058206,3.27573481,3591.1,3590.7,4.38]
[1732852058513,4.35842704,3591.3,3590.9,3.2078]
[1732852058514,1.02455402,3591.2,3590.9,3.2078]
[1732852058708,4.30028883,3591.2,3591.1,0.27842]
[1732852059216,1.02455402,3591.2,3591.1,0.27842]
[1732852064811,3.27545809,3591.2,3591.1,0.27842]
[1732852065013,3.27545809,3591.3,3591.2,0.27841]
[1732852065212,3.27545809,3591.5,3591.3,0.406]
[1732852065411,3.27545809,3591.5,3591.4,3.4862]
[1732852065618,3.27545809,3591.5,3591.4,48.6362]
[1732852066020,3.27545809,3591.5,3591.4,7.8362]
[1732852066409,3.27545809,3591.5,3591.4,48.6362]
[1732852067212,3.27545809,3591.6,3591.4,48.3578]
[1732852067415,4.77322704,3591.8,3591.4,48.3578]
[1732852067416,3.27545809,3591.8,3591.4,48.3578]
[1732852067618,3.27545809,3591.8,3591.7,0.27837]
[1732852067915,1.02455402,3591.8,3591.7,0.27837]
[1732852068515,4.30001211,3591.8,3591.7,0.27837]
[1732852068718,1.02455402,3591.8,3591.7,0.27837]
[1732852071613,4.14635809,3592.0,3591.4,3.2078]
[1732852071916,4.14635809,3592.0,3591.9,0.27836]
[1732852072112,6.93035809,3592.0,3591.9,0.27836]
[1732852073413,3.6549,3592.0,3591.9,0.27836]
[1732852073916,0.8709,3592.0,3591.9,0.27836]
[1732852074119,3.27545809,3592.1,3592.0,0.27835]
[1732852074311,4.72891211,3592.1,3592.0,0.27835]
[1732852074510,7.51291211,3592.1,3591.9,0.27835]
[1732852074707,1.02455402,3592.0,3591.9,0.27835]
[1732852074913,1.02455402,3592.0,3591.4,3.2078]
[1732852075113,1.02455402,3591.6,3591.4,0.78]
[1732852075313,1.2628,3591.5,3591.4,1.05839]
[1732852076116,4.10444025,3591.5,3591.4,1.05839]
[1732852076424,0.8338,3591.5,3591.4,1.05839]
[1732852076919,0.8338,3591.5,3591.4,0.27839]
[1732852077215,4.10444025,3591.5,3591.4,0.27839]
[1732852078612,4.10444025,3591.5,3591.3,3.4862]
[1732852079214,3.27064025,3591.4,3591.3,3.4862]
[1732852079421,4.10444025,3591.5,3591.3,3.2078]
[1732852079625,4.10444025,3591.5,3591.4,0.2784]
[1732852079924,0.8338,3591.5,3591.4,0.2784]
[1732852081720,4.10816628,3591.5,3591.4,0.2784]
[1732852081931,0.8338,3591.5,3591.4,0.2784]
[1732852084519,0.8338,3591.5,3591.3,3.4862]
[1732852085124,2.7848,3591.4,3590.8,3.2078]
[1732852085423,1.85835402,3591.5,3590.8,3.6158]
[1732852085424,1.02455402,3590.9,3590.8,3.6158]
[1732852085633,1.02455402,3590.9,3590.8,44.4158]
[1732852085927,2.17278402,3590.9,3590.5,0.69256]
[1732852086125,1.02455402,3590.7,3590.5,3.9521]
[1732852086325,0.27847,3590.5,3590.1,0.4471]
[1732852086627,0.4269,3590.4,3590.3,0.27848]
[1732852087920,0.4066,3590.6,3590.4,0.27847]
[1732852088123,0.4066,3590.6,3590.5,0.68647]
[1732852088327,0.4066,3590.6,3590.5,0.408]
[1732852089323,0.68506,3590.6,3590.5,0.408]
[1732852090029,0.4066,3590.6,3590.5,0.408]
[1732852090226,0.4066,3590.6,3590.5,0.68647]
[1732852090619,0.4066,3590.6,3590.5,0.408]
[1732852091023,0.68506,3590.6,3590.5,0.408]
[1732852091229,0.27847,3590.5,3590.4,3.2078]
[1732852091429,0.68506,3590.6,3590.4,3.48627]
[1732852092231,0.4066,3590.6,3590.4,3.48627]
[1732852092538,0.68506,3590.6,3590.4,3.48627]
[1732852092731,0.4066,3590.6,3590.4,3.2078]
[1732852092925,0.27847,3590.5,3590.4,3.2078]
[1732852093935,1.30302402,3590.5,3590.4,3.2078]
[1732852095535,0.27849,3590.3,3590.1,0.4056]
[1732852095926,0.4119,3590.2,3590.1,0.4056]
[1732852096938,0.4119,3590.2,3590.1,0.6841]
[1732852097138,0.4119,3590.2,3590.1,0.4056]
[1732852097330,0.68698,3590.4,3590.1,4.5456]
[1732852097331,0.4085,3590.4,3590.1,4.5456]
[1732852097528,0.4085,3590.4,3590.1,5.23279]
[1732852097830,0.4085,3590.4,3590.1,4.9543]
[1732852098027,3.95877685,3590.7,3590.4,0.27847]
[1732852098236,0.68436,3590.7,3590.4,0.27847]
[1732852098628,0.68436,3590.7,3590.4,4.36847]
[1732852100631,0.4059,3590.7,3590.5,0.27846]
[1732852100827,0.4059,3590.7,3590.5,4.21]
[1732852101033,0.68435,3590.7,3590.6,0.4333]
[1732852101228,0.68435,3590.7,3590.6,4.1633]
[1732852101629,3.95876685,3590.7,3590.6,4.1633]
[1732852101835,3.68031685,3590.7,3590.6,4.1633]
[1732852102034,0.4059,3590.7,3590.6,4.44176]
[1732852104135,0.4059,3590.7,3590.6,4.1633]
[1732852105335,0.4059,3590.7,3590.6,4.44176]
[1732852105539,3.27441685,3591.0,3590.6,4.1633]
[1732852105737,0.27843,3591.1,3590.9,0.27843]
[1732852105738,1.02455402,3591.1,3590.9,0.27843]
[1732852105937,1.30297402,3591.1,3590.9,4.39843]
[1732852107341,1.02455402,3591.1,3590.9,4.12]
[1732852107543,1.02455402,3591.1,3591.0,0.27843]
[1732852110335,1.30297402,3591.1,3590.9,0.27843]
[1732852110538,0.27858257,3591.2,3590.9,3.74]
[1732852110739,0.27858257,3591.2,3591.1,3.48622]
[1732852110935,1.43115402,3591.3,3591.2,0.27841]
[1732852111433,1.43115402,3591.3,3591.2,0.71481]
[1732852111434,1.02455402,3591.3,3591.2,0.71481]
[1732852111638,1.02455402,3591.3,3591.2,4.67481]
[1732852111940,1.02455402,3591.3,3591.2,5.11561]
[1732852112839,3.27010805,3591.4,3591.2,4.8372]
[1732852113044,3.27010805,3591.4,3591.3,0.7205]
[1732852113239,3.27010805,3591.4,3591.3,4.0521]
[1732852113543,3.27010805,3591.4,3591.3,4.3305]
[1732852114242,3.27095624,3591.4,3591.3,4.0521]
[1732852114442,3.27095624,3591.4,3591.3,4.3305]
[1732852115044,3.27095624,3591.5,3591.4,0.2784]
[1732852115243,1.02455402,3591.6,3591.5,0.27839]
[1732852116244,1.02455402,3591.6,3591.5,3.48619]
[1732852117547,1.30293402,3591.6,3591.5,3.2078]
[1732852117752,6.07316363,3591.6,3591.5,3.2078]
[1732852117952,6.48216363,3591.6,3591.5,3.2078]
[1732852118252,5.79478363,3591.6,3591.5,3.48619]
[1732852119553,5.79478363,3591.6,3591.5,0.27839]
[1732852119752,1.43295402,3591.6,3591.5,0.27839]
[1732852120147,1.71133402,3591.6,3591.4,0.27839]
[1732852120342,0.27839,3591.5,3591.4,3.81]
[1732852120546,1.43295402,3591.6,3591.4,4.08839]
[1732852121156,1.43295402,3591.6,3591.5,0.27839]
[1732852121453,1.02455402,3591.6,3591.5,4.20839]
[1732852122048,1.02455402,3591.6,3591.5,3.93]
[1732852122247,1.30293402,3591.6,3591.5,3.93]
[1732852124144,4.57444808,3591.6,3591.5,3.93]
[1732852124349,0.2784,3591.3,3591.2,0.4364]
[1732852124550,1.30295402,3591.3,3591.2,0.4364]
[1732852125145,1.02455402,3591.3,3591.2,0.4364]
[1732852126058,1.30295402,3591.3,3591.2,0.4364]
[1732852126359,1.74345402,3591.3,3591.2,0.4364]
[1732852128962,1.46505402,3591.3,3591.1,3.2078]
[1732852129165,0.27841,3591.2,3591.1,3.3078]
[1732852131159,3.70231406,3591.5,3591.1,3.3078]
[1732852131359,3.98070406,3591.5,3591.2,0.27841]
[1732852131566,3.98070406,3591.5,3591.3,0.433]
[1732852131863,3.98070406,3591.5,3591.4,40.8]
[1732852132264,3.98070406,3591.5,3591.3,0.433]
[1732852132864,0.2784,3591.4,3591.3,0.433]
[1732852134756,4.64022961,3591.4,3591.3,0.433]
[1732852138068,0.2784,3591.4,3591.3,0.433]
[1732852138368,4.64022961,3591.4,3591.3,0.433]
[1732852140571,4.64022961,3591.4,3591.3,4.453]
[1732852142165,0.2784,3591.4,3591.3,4.453]
[1732852142570,0.2784,3591.4,3591.3,4.02]
[1732852142778,0.6844,3591.4,3591.3,4.02]
[1732852143775,0.27841,3591.2,3591.1,3.2078]
[1732852143978,3.55273579,3591.2,3591.1,3.2078]
[1732852144178,0.27841,3591.2,3591.1,3.2078]
[1732852145578,0.27843,3591.0,3590.9,0.8496]
[1732852145769,3.55334257,3591.0,3590.9,4.6696]
[1732852149771,0.27843,3591.0,3590.9,4.6696]
[1732852150476,6.8925341,3591.1,3590.7,3.2078]
[1732852150781,4.64716582,3590.8,3590.7,3.2078]
[1732852151076,0.27844,3590.8,3590.7,3.2078]
[1732852151276,6.55392008,3590.8,3590.7,3.2078]
[1732852152182,6.27548008,3590.8,3590.5,41.2082]
[1732852152383,4.64862362,3590.6,3590.5,45.2282]
[1732852152887,0.27846,3590.6,3590.5,45.2282]
[1732852153978,0.27846,3590.6,3590.5,4.4282]
[1732852154377,0.27846,3590.6,3590.5,0.4082]
[1732852156585,0.27845,3590.7,3590.5,4.5082]
[1732852156779,0.27845,3590.7,3590.6,0.4044]
[1732852156974,4.64833917,3590.7,3590.6,4.7744]
[1732852157176,0.27845,3590.7,3590.6,4.7744]
[1732852157983,3.55535958,3590.7,3590.6,4.7744]
[1732852158985,0.27845,3590.7,3590.6,4.7744]
[1732852160180,3.55535958,3590.7,3590.6,4.7744]
[1732852161084,3.55534958,3590.8,3590.6,4.7744]
[1732852161278,3.27690958,3590.8,3590.7,0.27845]
[1732852161484,3.27690958,3590.8,3590.7,4.27]
[1732852161779,3.55534958,3590.8,3590.7,4.27]
[1732852162189,0.27844,3590.8,3590.7,4.27]
[1732852162581,3.554483,3590.8,3590.7,4.27]
[1732852163385,3.55511154,3590.8,3590.7,4.27]
[1732852163586,3.55507688,3590.8,3590.7,4.27]
[1732852164186,3.27663688,3590.8,3590.7,4.27]
[1732852164381,3.27663688,3590.8,3590.7,4.54845]
[1732852164788,4.64765278,3590.8,3590.7,4.27]
[1732852165288,4.64765278,3590.8,3590.7,4.54845]
[1732852165796,4.64765278,3590.8,3590.7,4.27]
[1732852166494,0.27844,3590.8,3590.7,4.27]
[1732852167083,0.27846,3590.6,3590.5,0.4082]
[1732852167287,0.27846,3590.6,3590.5,4.0882]
[1732852167288,4.64808135,3590.6,3590.5,4.0882]
[1732852167987,0.27846,3590.6,3590.5,4.0882]
[1732852168883,0.27846,3590.6,3590.0,5.39391389]
[1732852168884,0.2785,3590.1,3590.0,3.2078]
[1732852169084,0.2785,3590.1,3590.0,7.8844]
[1732852169085,4.58042653,3590.1,3590.0,7.8844]
[1732852169389,0.27854,3589.5,3589.3,48.37715987]
[1732852169595,0.27854,3589.5,3589.4,0.4366]
[1732852169791,0.27854,3589.5,3589.4,4.7866]
[1732852173990,0.27854,3589.5,3589.4,0.4366]
[1732852174195,0.70344,3589.5,3589.4,0.4366]
[1732852174398,0.4249,3589.5,3589.4,0.4366]
[1732852174597,0.27853,3589.8,3589.4,0.71515]
[1732852174790,1.02455402,3589.7,3589.4,0.4366]
[1732852175091,0.27854,3589.6,3589.4,0.4366]
[1732852177489,0.27853,3589.7,3589.4,0.71515]
[1732852178392,0.27851,3589.9,3589.7,0.27853]
[1732852178591,0.27851,3590.0,3589.8,0.4312]
[1732852178789,4.15542737,3590.3,3589.8,5.22575402]
[1732852178993,3.2078,3590.5,3590.4,0.27847]
[1732852179499,3.2078,3590.5,3590.4,41.07847]
[1732852179696,3.2078,3590.5,3590.4,44.09847]
[1732852179996,3.2078,3590.5,3590.4,44.51767]
[1732852180592,3.68822737,3591.1,3590.4,48.04855402]